[Event "ITT 1st Parada Jamundi 2022"]
[Site "Jamundi Valle"]
[Date "2022.12.10"]
[Round "8.10"]
[White "Mogollon Tobar, Nicolle Julieth"]
[Black "Arango Arenas, Juan Camilo"]
[Result "0-1"]
[ECO "B33"]
[WhiteElo "1840"]
[BlackElo "2202"]
[Annotator "TA"]
[PlyCount "96"]
[EventDate "2022.12.05"]
[EventType "swiss"]
[EventCountry "COL"]
[SourceTitle "playchess.com"]
[Source "ChessBase"]
[SourceQuality "1"]
[TimeControl "5400+30"]

{[%evp 26,96,7,-15,-12,-13,-18,-16,0,-10,21,20,38,29,35,34,34,35,27,25,27,9,10,0,25,6,58,58,61,0,0,7,11,0,0,0,6,0,0,-22,0,0,0,-21,0,0,0,-24,-24,-53,-59,-122,-122,-124,-123,-120,-122,-422,-411,-401,-397,-397,-340,-915,-982,-952,-940,-897,-880,-889,-879,-781,-600]} 1. e4 {[%emt 0:23:41]} c5 2. Nf3 {[%cal Bg1f3,Bf3d4,Bd4b5,Bb5a3,Ba3c2][%mdl 32]} Nc6 3. d4 cxd4 4. Nxd4 Nf6 5. Nc3 e5 6. Ndb5 d6 7. Bg5 a6 8. Na3 b5 9. Nd5 Be7 10. Bxf6 Bxf6 11. c3 Ne7 12. Nc2 Nxd5 13. Qxd5 Rb8 14. Ne3 Bg5 {B33: Sicilian: Pelikan and Sveshnikov Variations.} 15. Qd3 Bxe3 16. Qxe3 O-O {[#] The position is equal.} 17. Bd3 $146 ({Predecessor:} 17. Be2 f5 18. exf5 Bxf5 19. O-O Qh4 20. Rad1 Rf6 21. Qg3 Qa4 22. Bf3 Rg6 23. Bd5+ {½-½ (29) Ostermeier,R (2003)-Schork,S Germany 1999}) 17... d5 18. O-O d4 19. cxd4 Qxd4 20. Qxd4 exd4 21. Rfd1 Be6 22. Rd2 Rfd8 23. b3 g5 24. Rad1 a5 {[%cal Ba6a5,Ba5a4,Ba4a3][%mdl 32]} 25. Kf1 Rd6 (25... Kg7 $11) 26. Rc1 $14 a4 27. b4 (27. Rc5 $14) 27... a3 $1 $11 28. Rc5 {[%csl LRb5,LRg5]} h6 29. g3 (29. Bxb5 $2 {perishes.} Rxb5 $1 {[%mdl 512]} 30. Rxb5 Bc4+ 31. Ke1 Bxb5 $19) 29... Ra6 30. f4 {f5 is the strong threat.} (30. Bxb5 $2 Rxb5 $1 {[%mdl 512]} 31. Rxb5 Bc4+ 32. Ke1 Bxb5 $19) 30... f6 31. Rc1 (31. Bxb5 $2 {is the wrong capture.} Rxb5 $1 {[%mdl 512]} 32. Rxb5 Bc4+ 33. Ke1 Bxb5 $19) 31... Ra4 32. Rb1 (32. f5 $5 {[%cal Rf5e6]} Bf7 33. Rb1 $11) 32... Ra7 33. Rc1 Ra4 34. Rb1 Raa8 35. Ke1 Kf8 36. Rc1 Rc8 {Prevents Rc6.} 37. Rb1 Rab8 38. Kd1 {[#]} ({White should try} 38. Be2 $15) 38... Rc3 $1 $17 {[%cal Oe6a2]} 39. Rc1 Ra8 {[%cal Oe6b3] Hoping for ...Bb3+! Black has more active pieces.} 40. Rxc3 dxc3 {[%mdl 4096] Endgame KRB-KRB} 41. Re2 {[%mdl 8192] Now White is beyond hope.} (41. Rf2 $17 {was called for.}) 41... Bg4 $19 42. Kc2 Bxe2 43. Bxe2 {KR-KB} Rc8 44. Bxb5 $2 (44. h4) 44... Rb8 {Black is clearly winning.} 45. Bc4 Rxb4 46. Kxc3 Rb2 47. fxg5 hxg5 {[%cal Bh6g5,Bg5g4][%mdl 32]} ({Inferior is} 47... Rxh2 48. gxf6 Rh3 49. e5 Rxg3+ 50. Kd4 Rg4+ 51. Kd5 $11) 48. h4 {[%emt 0:23:12]} g4 {[%emt 0:25:58] Weighted Error Value: White=0.39/Black=0.09 (flawless)} 0-1

[Event "ITT 1st Parada Jamundi 2022"]
[Site "Jamundi Valle"]
[Date "2022.12.10"]
[Round "8.11"]
[White "Valdes Martinez, Miguel A."]
[Black "Gonzalez Velasco, Leandro"]
[Result "1-0"]
[ECO "A48"]
[WhiteElo "2104"]
[BlackElo "1915"]
[Annotator "TA"]
[PlyCount "111"]
[EventDate "2022.12.05"]
[EventType "swiss"]
[EventCountry "COL"]
[SourceTitle "playchess.com"]
[Source "ChessBase"]
[SourceQuality "1"]
[TimeControl "5400+30"]

{[%evp 15,111,0,0,0,17,8,26,9,24,23,6,-7,0,-7,33,37,33,31,42,21,36,7,69,24,38,45,137,88,118,-31,128,31,39,37,50,55,54,-16,62,64,72,92,64,72,194,167,161,157,185,190,188,189,261,250,197,204,347,211,556,537,503,325,424,429,821,825,985,764,761,753,742,689,709,695,782,752,1365,949,935,888,1015,1002,804,569,556,555,526,486,1300,1199,1356,1258,975,974,29988,29989,29989,29990]} 1. Nf3 {[%emt 0:04:24]} Nf6 {[%emt 0:00:13]} 2. d4 {[%emt 0:00:06]} g6 {[%emt 0:00:13]} 3. Bf4 {[%emt 0:00:59]} Bg7 {[%emt 0:00:19]} 4. e3 {[%emt 0:00:09]} O-O {[%emt 0:00:05]} 5. h3 {[%emt 0:00:19]} d6 {[%emt 0:00:56]} 6. Be2 {[%emt 0:00:35]} b6 {[%emt 0:00:55]} 7. O-O {[%emt 0:00:23]} Bb7 {[%emt 0:00:23]} 8. Nbd2 {[%emt 0:00:31]} Nbd7 9. Bh2 {[%emt 0:01:16] is the new trend. A48: 1 d4 Nf6 2 Nf3 g6: Torre, London and Colle Systems.} c5 {[%emt 0:03:23]} 10. a4 {[%emt 0:00:13]} a5 {[%emt 0:03:19] [#]} 11. Bb5 $146 {[%emt 0:00:13] White has an edge.} ({Predecessor:} 11. c3 Qc7 12. Bd3 Rfe8 13. e4 cxd4 14. cxd4 Rac8 15. Qe2 e5 16. d5 Nc5 17. Bb5 Red8 {1-0 (50) Tristan,L (2548)-D'Arruda,R (2271) Chess.com INT 2022}) 11... Ne4 {[%emt 0:00:30]} 12. c3 {[%emt 0:00:30]} Ndf6 {[%emt 0:00:30]} 13. Nc4 {[%emt 0:00:30]} Rc8 {[%emt 0:22:25]} 14. Na3 {[%emt 0:16:31]} cxd4 {[%emt 0:00:30]} 15. exd4 {[%emt 0:00:30]} Nd5 {[%emt 0:28:48]} 16. Re1 {[%emt 0:01:20]} f5 {[%emt 0:02:00]} 17. Nc4 {[%emt 0:05:42]} Kh8 {[%emt 0:00:30]} 18. Ncd2 {[%emt 0:00:30]} Ndf6 {[%emt 0:00:30]} ({Black should try} 18... Bh6 $11) 19. Qe2 {[%emt 0:00:30]} Bh6 {[%emt 0:00:30]} 20. Rad1 {[%emt 0:00:30]} g5 {[%emt 0:00:30]} (20... Kg8 $14) 21. Nxe4 {[%emt 0:00:30]} (21. d5 $142) 21... fxe4 $16 {[%emt 0:00:30] [#]} 22. Nd2 {[%emt 0:00:30] White is more active.} (22. Ne5 $1 $16 {[%mdl 512]}) 22... Rg8 $2 {[%emt 0:00:30]} (22... g4 $1 $15 {stays ahead.} 23. h4 (23. hxg4 e3 $11) 23... Rg8) 23. Nf1 {[%emt 0:00:30]} (23. g4 $16) 23... g4 $14 {[%emt 0:00:30] Inhibits f3.} 24. h4 {[%emt 0:00:30]} Qc7 {[%emt 0:00:30]} 25. Ng3 {[%emt 0:00:30]} Bf4 {[%emt 0:00:30]} 26. Nf1 {[%emt 0:00:30]} ({Much worse is} 26. Nf5 Bxh2+ 27. Kxh2 g3+ 28. fxg3 (28. Nxg3 e3 $17) 28... d5 $17) (26. d5 $1 $14) 26... Nh5 {[%emt 0:00:30]} (26... Bxh2+ $11 27. Kxh2 g3+ 28. fxg3 (28. Nxg3 Ng4+ 29. Kg1 e3 $17) 28... d5) 27. d5 {[%emt 0:00:30]} Bxh2+ {[%emt 0:00:30]} 28. Kxh2 {[%emt 0:00:30]} e5 {[%emt 0:00:30]} 29. dxe6 {[%emt 0:00:30] Black must now prevent Qe3.} Qe7 {[%emt 0:00:30] This move loses the game for Black.} (29... Nf4 $16 30. Qd2 d5) 30. g3 {[%emt 0:00:30]} Qxe6 {[%emt 0:00:30]} 31. Ne3 {[%emt 0:00:30] And now Bc4 would win.} Nf6 {[%emt 0:00:30]} 32. Qd2 {[%emt 0:00:30]} d5 {[%emt 0:00:30]} 33. Qd4 {[%emt 0:00:30]} Rg7 {[%emt 0:00:30]} (33... Rgf8 $142 34. Ng2 Bc6) 34. c4 $18 {[%emt 0:00:30][%cal Rc4d5]} Rc5 {[%emt 0:00:30]} 35. Rd2 {[%emt 0:00:30]} h6 {[%emt 0:00:30]} (35... Rgc7 $142 36. cxd5 Bxd5 37. Nxg4 Kg7) 36. Red1 {[%emt 0:00:30] Hoping for Rc1.} dxc4 $2 {[%emt 0:00:30]} (36... Kh7 {is a better chance.} 37. cxd5 Bxd5) 37. Bxc4 {[%emt 0:00:30]} Qe7 {[%emt 0:00:30]} 38. b3 {[%emt 0:00:30]} Kh7 {[%emt 0:00:30]} 39. Qd6 {[%emt 0:00:30]} Rc6 {[%emt 0:00:30]} (39... Qxd6 $142 40. Rxd6 Ne8 41. Rxb6 Rc6) 40. Qf4 {[%emt 0:00:30] Threatens to win with Rd8.} Bc8 {[%emt 0:00:30]} 41. Rd6 {[%emt 0:00:30]} Rxd6 {[%emt 0:00:30]} 42. Rxd6 {[%emt 0:00:30]} Rg6 {[%emt 0:00:30]} 43. Rxb6 {[%emt 0:00:30]} Nh5 {[%emt 0:00:30]} 44. Qb8 {[%emt 0:00:30][%cal Ob8c8]} Qf8 {[%emt 0:00:30]} 45. Kg1 {[%emt 0:00:30]} Nxg3 {[%emt 0:00:30]} 46. Qxg3 {[%emt 0:00:30] Rxg6 is the strong threat.} Rxb6 {[%emt 0:00:30]} 47. Qc7+ {[%emt 0:00:30]} (47. Nxg4 $2 {too greedy.} Bxg4 48. Qc7+ Qg7 49. Qxg7+ Kxg7 $19) 47... Qg7 {[%emt 0:00:30]} 48. Qxb6 {[%emt 0:00:30]} g3 {[%emt 0:00:30]} 49. Be6 {[%emt 0:00:30]} gxf2+ {[%emt 0:00:30]} 50. Kxf2 {[%emt 0:00:30]} Qb2+ {[%emt 0:00:30]} 51. Kg1 {[%emt 0:00:30]} Qg7+ {[%emt 0:00:30]} (51... Bxe6 $142 52. Qxe6 Qd4 53. Qf7+ Kh8) 52. Kh1 {[%emt 0:00:30]} Qa1+ {[%emt 0:00:30]} 53. Kg2 {[%emt 0:00:30] Intending Qc7+ and mate.} Qg7+ {[%emt 0:00:30]} 54. Kh3 {[%emt 0:00:30]} Qf6 {[%emt 0:00:30]} 55. Qc7+ {[%emt 0:00:30]} Kg6 {[%emt 0:00:30]} 56. Qg3+ {[%emt 0:25:12] Weighted Error Value: White=0.39/Black=0.63} 1-0

[Event "ITT 1st Parada Jamundi 2022"]
[Site "Jamundi Valle"]
[Date "2022.12.09"]
[Round "8.12"]
[White "Larino Nieto, David"]
[Black "Pazos Gambarrotti, Plinio"]
[Result "1-0"]
[ECO "D02"]
[WhiteElo "2466"]
[BlackElo "2083"]
[Annotator "TA"]
[PlyCount "55"]
[EventDate "2022.12.05"]
[EventType "swiss"]
[EventCountry "COL"]
[SourceTitle "playchess.com"]
[Source "ChessBase"]
[SourceQuality "1"]
[TimeControl "5400+30"]

{[%evp 9,55,6,31,0,0,-8,-2,-4,-4,-6,31,0,20,18,30,7,41,19,27,24,75,56,70,62,139,153,294,298,305,166,719,212,277,264,258,187,281,281,473,479,429,282,432,430,562,551,504,485]} 1. Nf3 {[%emt 0:21:38]} Nf6 {[%emt 0:00:20]} 2. d4 {[%emt 0:00:04]} e6 {[%emt 0:00:17]} 3. Bf4 d5 4. e3 Bd6 5. Bd3 c5 6. Bxd6 {D02: 1 d4 d5 2 Nf3 sidelines, including 2...Nf6 3 g3 and 2...Nf6 3 Bf4.} Qxd6 {[#]} 7. dxc5 $146 ({Predecessor:} 7. c3 O-O 8. Nbd2 Nbd7 9. O-O e5 10. dxe5 Nxe5 11. Nxe5 Qxe5 12. Qf3 Rd8 13. Qg3 Qe7 14. h3 Ne4 15. Bxe4 dxe4 16. Rfd1 Bf5 17. Nc4 f6 18. Nd6 Bg6 19. Rd2 Rd7 {1-0 (35) Fogh,J (2149)-Thorsbro,P (2190) Skanderborg 2021}) 7... Qxc5 8. O-O {The position is equal.} Nc6 9. Nbd2 Nb4 (9... e5 $5 {[%cal Re5e4]} 10. e4 Bg4 $11) 10. Be2 O-O 11. a3 Nc6 12. b4 Qd6 13. h3 Bd7 14. c4 dxc4 (14... b6 $11 {remains equal.}) 15. Nxc4 $16 Qxd1 16. Rfxd1 Rfe8 ({Black should try} 16... Ne7 $14) 17. Nd6 {[%csl LRb7,LRe8] White is more active.} Rab8 (17... Reb8 $16 18. Ng5 Nd8) 18. b5 Ne7 19. Ne5 (19. Nxe8 $142 Bxe8 20. Rac1) 19... Ng6 $2 {[#]} (19... Rf8 20. Ndxf7 Rxf7) 20. Nexf7 $2 (20. Nxd7 Nxd7 21. Nxe8) 20... Rf8 21. Ng5 {[%cal Bf7g5,Bg5f3,Bf3e5][%mdl 32]} h6 22. Nf3 Nd5 (22... Rfd8 {is a better defense.} 23. Bc4 Kf8) 23. Bc4 $18 Nge7 $2 {[#]} (23... Nc3 24. Rd4 Nd5) 24. Ne5 Be8 25. g3 {Black must now prevent e4.} Rf6 (25... Ng6 $142) 26. e4 {White is clearly winning.} Nc3 27. Rdc1 Na4 28. Bb3 {[%emt 0:12:33] Weighted Error Value: White=0.51/Black=0.54} 1-0

[Event "ITT 1st Parada Jamundi 2022"]
[Site "Jamundi Valle"]
[Date "2022.12.10"]
[Round "8.13"]
[White "Londono Lopez, Donaldo"]
[Black "Lopez Rayo, Isabella"]
[Result "1-0"]
[ECO "B77"]
[WhiteElo "2055"]
[BlackElo "1898"]
[Annotator "TA"]
[PlyCount "49"]
[EventDate "2022.12.05"]
[EventType "swiss"]
[EventCountry "COL"]
[SourceTitle "playchess.com"]
[Source "ChessBase"]
[SourceQuality "1"]
[TimeControl "5400+30"]

{[%evp 20,48,10,0,47,45,62,52,70,35,128,110,122,65,88,76,95,25,136,129,128,131,123,141,138,141,29985,29986,29997,29998,29999]} 1. e4 c5 {[%emt 0:23:52]} 2. Nf3 {[%emt 0:00:20]} d6 {[%emt 0:00:05]} 3. d4 {[%emt 0:00:16]} cxd4 {[%emt 0:00:05]} 4. Nxd4 {[%emt 0:00:14]} Nf6 {[%emt 0:00:04]} 5. Nc3 {[%emt 0:00:12]} g6 {[%emt 0:00:04]} 6. Be3 {[%emt 0:00:11]} Bg7 {[%emt 0:00:04]} 7. f3 {[%emt 0:00:14]} O-O {[%emt 0:00:05]} 8. Qd2 {[%emt 0:00:14]} Nc6 {[%emt 0:00:05]} 9. Bc4 {[%emt 0:00:14]} Bd7 {[%emt 0:00:04]} 10. h4 {[%emt 0:00:24]} h5 {[%emt 0:00:23]} 11. O-O-O {[%emt 0:00:20]} Rc8 {[%emt 0:00:39] B77: Sicilian Dragon: Yugoslav Attack, 9 Bc4 sidelines.} (11... Ne5 $11 12. Bb3 Rb8) 12. Nxc6 $14 {[%emt 0:00:18]} bxc6 {[%emt 0:13:40]} 13. g4 {[%emt 0:01:38] [#] Hoping for e5. White is much more active.} (13. Bxa7 c5) 13... Qa5 $146 {[%emt 0:11:06] Against e5. White is slightly better.} ({Predecessor:} 13... hxg4 14. h5 Nxh5 15. Rxh5 gxh5 16. Bh6 Qa5 17. Bd5 Bf6 18. e5 cxd5 19. exf6 exf6 20. Qd4 Rxc3 21. Qxf6 Rxc2+ 22. Kb1 Rxb2+ 23. Kxb2 Rb8+ 24. Ka1 {1-0 (24) Luckow,R-Jeck,T Kiel 1992}) 14. Bh6 {[%emt 0:13:27]} (14. g5 Ne8 $11) (14. gxh5 {simplifies} Qxh5 15. Bg5 d5 16. Bb3) 14... Qb4 {[%emt 0:04:46] [#]} (14... hxg4 15. Bxg7 Kxg7 16. Qg5 Qxg5+ 17. hxg5 $17) (14... Rb8 $14) 15. Bb3 $1 $16 {[%emt 0:04:06][%cal Oe4e5]} ({Of course not} 15. Bxg7 $6 Kxg7 16. g5 Qxc4 $11) 15... Qa5 {[%emt 0:23:07] Against e5} (15... hxg4 $2 16. h5 Nxh5 17. Qg5 $18) 16. Rdg1 {[%emt 0:10:31]} (16. Rde1 $16) 16... Kh7 {[%emt 0:01:29] Prevents e5.} 17. Bxg7 {[%emt 0:05:59]} Kxg7 {[%emt 0:00:01]} 18. Qg5 {[%emt 0:07:57]} ({Don't play} 18. g5 Ne8 $14) ({White should play} 18. Re1 $16) 18... Qxg5+ {[%emt 0:02:22]} (18... Qe5 $11) 19. hxg5 {[%emt 0:00:10]} Ne8 {[%emt 0:02:46]} 20. gxh5 {[%emt 0:00:08]} gxh5 {[%emt 0:00:32]} 21. Rxh5 {[%emt 0:00:10] Black must now prevent Rgh1.} Nc7 {[%emt 0:01:32]} 22. Rgh1 $36 {[%emt 0:01:45][%mdl 2048] White is in control.} Be6 $2 {[%emt 0:01:24][%mdl 8192] [#]} (22... Rh8 $16 23. Kd2 (23. Rxh8 Rxh8 24. Rxh8 Kxh8 $16) 23... e5) 23. Rh7+ {[%emt 0:04:44] White mates.} Kg6 {[%emt 0:02:06]} 24. f4 {[%emt 0:00:24][%csl Gg5,Gh7][%cal Rh1h6]} Bxb3 {[%emt 0:00:21]} 25. R1h6# {[%emt 0:00:16] Weighted Error Value: White=0.20 (precise) /Black=0.59} 1-0

[Event "ITT 1st Parada Jamundi 2022"]
[Site "Jamundi Valle"]
[Date "2022.12.10"]
[Round "8.14"]
[White "Vacca, Leonardo"]
[Black "Navia Alvarez, Edwin Adrian"]
[Result "0-1"]
[ECO "D10"]
[WhiteElo "2041"]
[BlackElo "2023"]
[Annotator "TA"]
[PlyCount "198"]
[EventDate "2022.12.05"]
[EventType "swiss"]
[EventCountry "COL"]
[SourceTitle "playchess.com"]
[Source "ChessBase"]
[SourceQuality "1"]
[TimeControl "5400+30"]

{[%evp 11,198,54,52,28,42,0,10,0,0,0,28,0,11,0,29,0,20,-39,-39,-47,-41,-60,-24,-11,-16,-19,-27,-24,-19,-67,-20,-64,-28,-34,-50,-50,-26,-48,-30,-52,-58,-62,-26,-45,-8,-29,0,-8,-6,-15,0,0,0,-5,27,-10,-11,-9,0,0,0,-8,-4,-6,-4,-6,-6,-6,0,0,0,-58,-5,-126,-128,-121,-121,-121,-123,-123,-123,-123,-123,-131,-139,-129,0,-95,-95,-100,-84,-87,-85,-86,-95,-97,-97,-97,-75,-75,-75,-81,-81,-81,-75,-89,-89,-89,-55,-59,-13,-13,-12,-12,-12,-15,-14,-93,-58,-58,-7,-7,-7,-8,-8,-8,-8,-85,-8,-8,-8,-8,-8,-8,-8,-8,-8,-8,-8,-85,0,0,0,-85,-85,-85,-8,-85,-8,-85,-8,-85,-8,-8,-7,-8,-7,-1677,-1428,-29963,-29964,-29964,-29965,-29965,-29967,-29966,-29967,-29969,-29970,-29970,-29971,-29973,-29974,-29974,-29975,-29975,-29975,-29975,-29976,-29976,-29977,-29977,-29978,-29978,-29979,-29980,-29981,-29982,-29983]} 1. c4 {[%emt 0:01:57]} c6 {[%emt 0:00:11]} 2. Nc3 {[%emt 0:01:10]} d5 {[%emt 0:00:07]} 3. e3 {[%emt 0:00:40]} Nf6 {[%emt 0:00:10]} 4. Nf3 Bg4 {[%emt 0:12:27]} 5. Qb3 {[%emt 0:03:57]} Bc8 {[%emt 0:01:43]} 6. d4 {[%emt 0:04:33]} e6 {[%emt 0:00:08][%cal Be7e6,Be6e5][%mdl 32]} 7. Bd2 {[%emt 0:03:36] D10: Slav Defence: 3 cxd5 (without early Nf3) and 3 Nc3.} Bd6 {[%emt 0:01:21]} 8. Rc1 {[%emt 0:01:45]} Nbd7 {[%emt 0:02:22]} 9. Bd3 {[%emt 0:02:23] The position is equal.} O-O {[%emt 0:01:11] [#]} 10. O-O $146 {[%emt 0:00:47]} ({Predecessor:} 10. h4 dxc4 11. Bxc4 Nb6 12. Bd3 c5 13. dxc5 Bxc5 14. Nb5 Bd6 15. Nxd6 Qxd6 16. Bb4 {1-0 (26) Maksimov,S (1769)-Spirin,A Nizhnij Novgorod 2013}) 10... dxc4 {[%emt 0:04:17]} 11. Qxc4 {[%emt 0:05:40]} e5 {[%emt 0:07:48]} 12. Bb1 {[%emt 0:05:52]} (12. h3 {is more complex.} Bc7 13. Bb1 Re8 14. Ng5) 12... Qe7 {[%emt 0:12:33]} (12... Bc7 {seems wilder.} 13. h3 Re8 14. Ng5 Re7) 13. Qd3 {[%emt 0:11:21] Inhibits e4.} Re8 {[%emt 0:03:14] Strongly threatening ...e4.} 14. e4 {[%emt 0:03:03]} (14. Ng5 $11) 14... exd4 $15 {[%emt 0:07:59]} 15. Nxd4 {[%emt 0:05:45]} Nc5 {[%emt 0:07:42]} (15... Qe5 16. f4 Qh5 17. e5 Nxe5 18. fxe5 Bxe5 19. Nf3 $16) 16. Qc2 {[%emt 0:00:16]} Qe5 {[%emt 0:10:37][%csl Gd6][%cal Re5h2]} (16... Ncxe4 17. Rfe1 c5 18. Nxe4 $14 (18. Rxe4 Nxe4 19. Qxe4 Qxe4 $11)) (16... Nfxe4 17. b4 Bxh2+ 18. Kxh2 Qd6+ 19. Kg1 Qxd4 20. bxc5 (20. Be1 Bf5 $16) 20... Nxd2 21. Rfd1 $16 (21. Qxh7+ Kf8 $16) (21. Qxh7+ Kf8 $16)) (16... Be5 {simplifies} 17. Nf3 Bxc3 18. Bxc3 Ncxe4 19. Rfe1 Bf5) 17. Nf3 {[%emt 0:01:16]} Qh5 {[%emt 0:00:01][%cal Oc8g4] Threatens to win with ...Bg4!} 18. e5 $1 {[%emt 0:03:38]} Bxe5 {[%emt 0:00:28]} 19. Nxe5 {[%emt 0:01:53]} Rxe5 {[%emt 0:00:26]} (19... Qxe5 20. Rfe1 Qh5 21. Rxe8+ Nxe8 22. Ne2 $1 $16) 20. Bf4 {[%emt 0:00:27]} (20. Rfe1 $11 {was preferrable.}) 20... Re8 {[%emt 0:05:20]} (20... Bf5 $15 21. Qd1 Ree8) 21. Bg3 {[%emt 0:02:06]} (21. Rfe1 {is interesting.} Be6 22. Ne2 Bd5 23. f3) 21... Be6 {[%emt 0:01:48]} 22. b4 {[%emt 0:06:46]} Ncd7 {[%emt 0:01:21]} 23. a4 {[%emt 0:03:00]} Nd5 {[%emt 0:01:41]} 24. Qb2 {[%emt 0:02:13]} N7f6 {[%emt 0:00:37]} 25. Rfe1 {[%emt 0:01:23]} Nxc3 {[%emt 0:01:02]} 26. Qxc3 {[%emt 0:00:51]} Bd5 {[%emt 0:03:21]} 27. f3 {[%emt 0:01:51]} Nd7 {[%emt 0:01:16]} (27... a6 {simplifies} 28. Rxe8+ Rxe8 29. Re1 Rxe1+ 30. Qxe1 Be6) 28. Qd4 {[%emt 0:01:35]} b6 {[%emt 0:02:23]} 29. Rcd1 {[%emt 0:03:49]} Nf8 {[%emt 0:01:34]} 30. Bc2 {[%emt 0:02:34] Inhibits Bb3. This pair of bishops is nice.} Re6 {[%emt 0:04:50]} 31. a5 {[%emt 0:05:09]} bxa5 {[%emt 0:02:11]} 32. bxa5 {[%emt 0:00:29]} f6 {[%emt 0:00:32]} 33. Qc5 {[%emt 0:03:41] [#]} Bxf3 $1 {[%emt 0:00:42]} 34. Qxh5 {[%emt 0:04:27]} Rxe1+ {[%emt 0:01:50]} 35. Rxe1 {[%emt 0:00:35]} Bxh5 {[%emt 0:00:01]} 36. Re7 {[%emt 0:00:34]} Bf7 {[%emt 0:00:14]} 37. Be4 {[%emt 0:01:34]} Bd5 {[%emt 0:00:18]} 38. Bxd5+ {[%emt 0:00:25]} cxd5 $11 {[%emt 0:00:01][%mdl 4096] Endgame KRB-KRN} 39. a6 $1 {[%emt 0:00:13]} h5 {[%emt 0:02:14]} 40. Bf2 {[%emt 0:00:14]} Rc8 {[%emt 0:00:48] aiming for ...Rc1+.} 41. Be3 {[%emt 0:02:48] Against Rc1+} (41. Rxa7 $2 Rc1+ $19) (41. Bxa7 Rc6 42. Re8 Kf7 $17) (41. g4 $11) 41... Rc3 {[%emt 0:00:18]} (41... Rc4 $1 $15) 42. Bxa7 {[%emt 0:00:18]} (42. Kf2 $1 $11) 42... Rc6 {[%emt 0:00:08]} 43. Re8 {[%emt 0:00:56]} Kf7 $1 {[%emt 0:00:01]} ({Don't take} 43... Rxa6 44. Bc5 $16) 44. Rd8 {[%emt 0:00:18][%cal Oa7c5]} Rxa6 {[%emt 0:00:05]} 45. Bc5 {[%emt 0:00:04]} Ne6 {[%emt 0:00:19]} 46. Rxd5 {[%emt 0:00:42]} Ra1+ {[%emt 0:01:16]} 47. Kf2 {[%emt 0:00:16]} Ra2+ {[%emt 0:00:09]} 48. Kf1 {[%emt 0:00:20]} Ra1+ {[%emt 0:00:42]} 49. Kf2 {[%emt 0:00:10]} Nf4 {[%emt 0:01:40]} 50. Rd2 {[%emt 0:00:35] Inhibits Ra2.} Ra4 {[%emt 0:00:44]} 51. Be3 {[%emt 0:01:34]} Ne6 {[%emt 0:00:29]} 52. Rd7+ {[%emt 0:01:10]} Kg6 {[%emt 0:00:02]} 53. Rd2 {[%emt 0:00:28]} Kf5 {[%emt 0:00:26]} 54. Kf3 {[%emt 0:00:52]} Ra3 {[%emt 0:00:30]} 55. Rd5+ {[%emt 0:00:14]} Kg6 {[%emt 0:00:01]} 56. Kf2 {[%emt 0:00:18]} Ra2+ {[%emt 0:00:45]} 57. Kf3 {[%emt 0:00:37]} Rb2 {[%emt 0:00:32]} 58. Ra5 {[%emt 0:00:29]} Rb3 {[%emt 0:00:21]} 59. Kf2 {[%emt 0:00:10]} h4 {[%emt 0:00:24]} 60. Ra4 {[%emt 0:00:31]} h3 {[%emt 0:00:30]} (60... Kh5 $15) 61. gxh3 {[%emt 0:00:56]} Rb2+ {[%emt 0:01:18]} 62. Kg3 {[%emt 0:00:34]} Re2 {[%emt 0:00:34]} 63. Ra3 {[%emt 0:01:21]} f5 {[%emt 0:00:49][%cal Oe2e3] And now ...Rxe3+! would win.} 64. Bf4 {[%emt 0:01:25]} (64. Bf2 $11) 64... Nxf4 {[%emt 0:00:54] Black is much more active.} 65. Kxf4 {[%emt 0:00:12]} Rxh2 $17 {[%emt 0:00:18] KR-KR} (65... Re4+ $15 66. Kg3 Kg5) 66. Ra6+ $11 {[%emt 0:01:21]} Kh5 {[%emt 0:00:47]} 67. Ra8 {[%emt 0:00:48]} Rf2+ {[%emt 0:00:13]} (67... Rxh3 {gets mated.} 68. Rh8+ (68. Kxf5 Rf3+ 69. Ke4 Rf1 $19) 68... Kg6 69. Rxh3 Kf6 70. Rg3 g6 71. Rg1 Kf7 72. Ke5) 68. Kg3 {[%emt 0:00:05]} Rf1 {[%emt 0:00:11]} 69. Rf8 {[%emt 0:00:37] Against f4+} (69. Rh8+ $1 $11 {was the only way to keep the balance.} Kg6 70. h4) 69... Kg5 {[%emt 0:00:19]} (69... g6 $17) 70. h4+ {[%emt 0:00:13]} Kg6 {[%emt 0:00:19]} 71. Ra8 {[%emt 0:00:50]} Rg1+ {[%emt 0:00:09]} 72. Kf3 {[%emt 0:00:17]} Rg4 {[%emt 0:00:07]} 73. Rh8 $1 {[%emt 0:00:10]} Ra4 {[%emt 0:00:07]} 74. Kg3 {[%emt 0:00:11]} Kf6 {[%emt 0:00:12]} 75. Rb8 {[%emt 0:00:16]} (75. Rf8+ $1 $11 Kg6 76. h5+ Kg5 77. Rf7) 75... Rc4 {[%emt 0:01:10]} ({Better is} 75... Rg4+ $17 76. Kh3 Re4) 76. Rb6+ {[%emt 0:00:16]} Kf7 {[%emt 0:00:09]} 77. Ra6 {[%emt 0:01:08]} (77. h5 $11 {remains equal.}) 77... Rg4+ $17 {[%emt 0:00:24]} 78. Kh3 {[%emt 0:00:05]} Re4 {[%emt 0:01:03]} (78... g6 $1 $17) 79. Kg3 {[%emt 0:00:27]} (79. h5 $1 $11 {keeps the balance.}) 79... Re6 {[%emt 0:00:09]} ({Black should try} 79... g6 $17) 80. Ra4 {[%emt 0:01:44]} (80. Rxe6 $1 $11 Kxe6 81. Kf4) 80... Kf6 {[%emt 0:00:07]} (80... g6 $1 $17) 81. Kf4 {[%emt 0:00:27]} (81. h5 $1 $11) 81... Kg6 {[%emt 0:00:02]} (81... g6 $17) 82. Rb4 $1 $11 {[%emt 0:00:20]} Rf6 {[%emt 0:00:23]} 83. Rb8 {[%emt 0:00:14]} Ra6 {[%emt 0:01:08]} 84. h5+ $2 {[%emt 0:00:38][%mdl 8192] Loses the game.} (84. Rh8 $11) 84... Kxh5 $19 {[%emt 0:03:27]} 85. Kxf5 {[%emt 0:02:07]} Rf6+ $1 {[%emt 0:00:00] Black mates.} 86. Ke5 {[%emt 0:00:00]} Rf1 {[%emt 0:00:00]} 87. Rb2 {[%emt 0:00:00]} g5 {[%emt 0:00:00][%cal Bg7g5,Bg5g4,Bg4g3,Bg3g2][%mdl 32]} 88. Rh2+ {[%emt 0:00:00]} Kg4 {[%emt 0:00:00]} 89. Rg2+ {[%emt 0:00:00]} Kh4 {[%emt 0:00:00]} 90. Ke4 {[%emt 0:00:08]} g4 {[%emt 0:00:00]} 91. Ke3 {[%emt 0:00:09]} Kh3 {[%emt 0:00:00]} 92. Ra2 {[%emt 0:00:10]} g3 {[%emt 0:00:07]} 93. Ra8 {[%emt 0:00:08]} g2 {[%emt 0:02:16]} 94. Rh8+ {[%emt 0:00:11] [#]} Kg3 $1 {[%emt 0:00:01]} 95. Rg8+ {[%emt 0:00:01]} Kh2 {[%emt 0:00:02]} 96. Rh8+ {[%emt 0:00:01] [#]} Kg1 $1 {[%emt 0:00:18]} 97. Ke2 {[%emt 0:00:16]} Rf5 {[%emt 0:00:27]} 98. Ra8 {[%emt 0:00:46]} Rh5 {[%emt 0:01:07]} 99. Kf3 {[%emt 0:01:28]} Kh1 {[%emt 0:00:25] Weighted Error Value: White=0.15 (very precise) /Black=0.15 (very precise)} 0-1